[Event "*** Titled Tuesday Blitz"]
[Site "Chess.com"]
[Date "2020.05.12"]
[Round "2"]
[White "Buffy7"]
[Black "Gergo85"]
[Result "0-1"]
[WhiteElo "2695"]
[BlackElo "2493"]
[TimeControl "180+1"]
[EndTime "10:18:58 PDT"]
[Termination "Gergo85 won by checkmate"]

1. e4 {[%clk 0:03:00.9]} 1... c6 {[%clk 0:03:00.1]} 2. Nc3 {[%clk 0:03:00]} 2...
d5 {[%clk 0:03:01]} 3. Nf3 {[%clk 0:03:00.4]} 3... dxe4 {[%clk 0:03:01.2]} 4.
Nxe4 {[%clk 0:03:00.1]} 4... Nf6 {[%clk 0:02:58]} 5. Qe2 {[%clk 0:03:00.3]} 5...
Nxe4 {[%clk 0:02:55.9]} 6. Qxe4 {[%clk 0:03:01.2]} 6... Nd7 {[%clk 0:02:55.5]}
7. Bc4 {[%clk 0:02:57.4]} 7... Nf6 {[%clk 0:02:55.1]} 8. Qe2 {[%clk 0:02:57.5]}
8... Bf5 {[%clk 0:02:41.1]} 9. Ne5 {[%clk 0:02:30.1]} 9... e6 {[%clk 0:02:39.9]}
10. d3 {[%clk 0:02:29.6]} 10... Bd6 {[%clk 0:02:26.3]} 11. Bd2 {[%clk
0:02:22.1]} 11... Qc7 {[%clk 0:02:21.2]} 12. f4 {[%clk 0:02:15.3]} 12... O-O-O
{[%clk 0:02:00.2]} 13. g4 {[%clk 0:01:55.7]} 13... Bxe5 {[%clk 0:01:52]} 14.
gxf5 {[%clk 0:01:54.8]} 14... Bxf4 {[%clk 0:01:52.1]} 15. fxe6 {[%clk
0:01:53.9]} 15... Bxd2+ {[%clk 0:01:47.8]} 16. Kxd2 {[%clk 0:01:39.3]} 16...
Qf4+ {[%clk 0:01:37.5]} 17. Kc3 {[%clk 0:01:39.2]} 17... Qd4+ {[%clk 0:01:31.9]}
18. Kb3 {[%clk 0:01:36]} 18... b5 {[%clk 0:01:21.9]} 19. c3 {[%clk 0:01:36]}
19... bxc4+ {[%clk 0:01:19.3]} 20. dxc4 {[%clk 0:01:36.9]} 20... Qb6+ {[%clk
0:01:04.1]} 21. Kc2 {[%clk 0:01:37.2]} 21... Rhe8 {[%clk 0:01:04.6]} 22. e7
{[%clk 0:01:33.1]} 22... Rd7 {[%clk 0:01:02.5]} 23. Rhe1 {[%clk 0:01:33.6]}
23... Qc7 {[%clk 0:00:54.3]} 24. Qg2 {[%clk 0:01:31]} 24... Rdxe7 {[%clk
0:00:49.7]} 25. Rxe7 {[%clk 0:01:17.8]} 25... Rxe7 {[%clk 0:00:50.6]} 26. Rd1
{[%clk 0:01:18.2]} 26... g6 {[%clk 0:00:36.7]} 27. b4 {[%clk 0:01:18]} 27... Ne4
{[%clk 0:00:20.1]} 28. Qh3+ {[%clk 0:01:14.3]} 28... Kb7 {[%clk 0:00:20.5]} 29.
Qe3 {[%clk 0:00:47.6]} 29... f5 {[%clk 0:00:18.3]} 30. c5 {[%clk 0:00:43.6]}
30... Qxh2+ {[%clk 0:00:18.2]} 31. Kb3 {[%clk 0:00:43.7]} 31... Qe5 {[%clk
0:00:18.7]} 32. Kb2 {[%clk 0:00:21.9]} 32... f4 {[%clk 0:00:17.1]} 33. Qf3
{[%clk 0:00:19.8]} 33... g5 {[%clk 0:00:17]} 34. Rd8 {[%clk 0:00:18.1]} 34... g4
{[%clk 0:00:14.3]} 35. Qd3 {[%clk 0:00:18.2]} 35... Qe6 {[%clk 0:00:12.1]} 36.
b5 {[%clk 0:00:16.6]} 36... Nxc5 {[%clk 0:00:11]} 37. Qd4 {[%clk 0:00:14.8]}
37... Qe2+ {[%clk 0:00:08.5]} 38. Ka3 {[%clk 0:00:15.3]} 38... Qe5 {[%clk
0:00:05.9]} 39. bxc6+ {[%clk 0:00:14]} 39... Kc7 {[%clk 0:00:06.2]} 40. Qb4
{[%clk 0:00:14.5]} 40... Kxc6 {[%clk 0:00:05.3]} 41. Rc8+ {[%clk 0:00:14]} 41...
Rc7 {[%clk 0:00:05.8]} 42. Rb8 {[%clk 0:00:12.2]} 42... Qd6 {[%clk 0:00:04.6]}
43. Qb5+ {[%clk 0:00:12.1]} 43... Kd5 {[%clk 0:00:04.7]} 44. Qb4 {[%clk
0:00:10]} 44... Ne4 {[%clk 0:00:04.3]} 45. Rb5+ {[%clk 0:00:07.8]} 45... Ke6
{[%clk 0:00:04.1]} 46. Ka4 {[%clk 0:00:08.4]} 46... Qxb4+ {[%clk 0:00:04.1]} 47.
Rxb4 {[%clk 0:00:08.4]} 47... Nxc3+ {[%clk 0:00:04.6]} 48. Ka5 {[%clk
0:00:09.3]} 48... f3 {[%clk 0:00:05.2]} 49. Rxg4 {[%clk 0:00:09.5]} 49... Nd5
{[%clk 0:00:04.9]} 50. Rf4 {[%clk 0:00:10.4]} 50... Nxf4 {[%clk 0:00:04.5]} 51.
Ka6 {[%clk 0:00:11.3]} 51... f2 {[%clk 0:00:05.4]} 52. a4 {[%clk 0:00:12.2]}
52... f1=Q+ {[%clk 0:00:06.3]} 53. Ka5 {[%clk 0:00:12.9]} 53... Qe1+ {[%clk
0:00:06.1]} 54. Kb5 {[%clk 0:00:12.8]} 54... Qb1+ {[%clk 0:00:06]} 55. Ka5
{[%clk 0:00:13.2]} 55... Rc5+ {[%clk 0:00:06.5]} 56. Ka6 {[%clk 0:00:13.5]}
56... Qb6# {[%clk 0:00:07]} 0-1

[Event "*** Titled Tuesday Blitz"]
[Site "Chess.com"]
[Date "2020.05.12"]
[Round "2"]
[White "cassoulet"]
[Black "djano"]
[Result "1-0"]
[WhiteElo "2664"]
[BlackElo "2434"]
[TimeControl "180+1"]
[EndTime "10:18:58 PDT"]
[Termination "cassoulet won by resignation"]

1. e4 {[%clk 0:03:00.9]} 1... e5 {[%clk 0:02:59.7]} 2. Nf3 {[%clk 0:03:00.7]}
2... Nc6 {[%clk 0:03:00]} 3. Bb5 {[%clk 0:03:00.5]} 3... a6 {[%clk 0:02:57.5]}
4. Ba4 {[%clk 0:03:00.3]} 4... d6 {[%clk 0:02:57]} 5. O-O {[%clk 0:03:00]} 5...
Nf6 {[%clk 0:02:54.2]} 6. Qe2 {[%clk 0:02:59.8]} 6... Be7 {[%clk 0:02:53.9]} 7.
c3 {[%clk 0:02:57.1]} 7... O-O {[%clk 0:02:53.1]} 8. d4 {[%clk 0:02:53.7]} 8...
b5 {[%clk 0:02:52.1]} 9. Bb3 {[%clk 0:02:51.7]} 9... Bg4 {[%clk 0:02:51.5]} 10.
Rd1 {[%clk 0:02:48.8]} 10... exd4 {[%clk 0:02:41]} 11. cxd4 {[%clk 0:02:46.8]}
11... d5 {[%clk 0:02:41.6]} 12. e5 {[%clk 0:02:46.6]} 12... Ne4 {[%clk
0:02:41.9]} 13. a4 {[%clk 0:02:31.6]} 13... Na5 {[%clk 0:02:29.7]} 14. Bc2
{[%clk 0:02:29.6]} 14... f5 {[%clk 0:02:28.3]} 15. axb5 {[%clk 0:02:18.8]} 15...
axb5 {[%clk 0:02:24.7]} 16. Qxb5 {[%clk 0:02:18]} 16... Bxf3 {[%clk 0:02:08.5]}
17. gxf3 {[%clk 0:02:18.9]} 17... c6 {[%clk 0:02:08.5]} 18. Qf1 {[%clk
0:01:46.8]} 18... Ng5 {[%clk 0:02:08]} 19. Bxg5 {[%clk 0:01:44.3]} 19... Bxg5
{[%clk 0:02:07.5]} 20. b3 {[%clk 0:01:26.3]} 20... Bf4 {[%clk 0:01:54.3]} 21.
Nc3 {[%clk 0:01:25.6]} 21... Rb8 {[%clk 0:01:45.3]} 22. Ne2 {[%clk 0:01:22.2]}
22... Qg5+ {[%clk 0:01:37.8]} 23. Kh1 {[%clk 0:01:00.9]} 23... Nxb3 {[%clk
0:01:32.6]} 24. Bxb3 {[%clk 0:00:52.4]} 24... Rxb3 {[%clk 0:01:31]} 25. Qh3
{[%clk 0:00:52.6]} 25... Qh6 {[%clk 0:01:22.3]} 26. Qxh6 {[%clk 0:00:47.1]}
26... Bxh6 {[%clk 0:01:22.4]} 27. Kg2 {[%clk 0:00:47.1]} 27... Rc8 {[%clk
0:01:07.8]} 28. f4 {[%clk 0:00:42.6]} 28... g6 {[%clk 0:01:04]} 29. Rdc1 {[%clk
0:00:39.8]} 29... Bf8 {[%clk 0:01:03.5]} 30. Ra5 {[%clk 0:00:30]} 30... Bb4
{[%clk 0:01:00.2]} 31. Ra7 {[%clk 0:00:24.5]} 31... Bf8 {[%clk 0:00:54.7]} 32.
Nc3 {[%clk 0:00:20.9]} 32... Rbb8 {[%clk 0:00:39.4]} 33. Rc2 {[%clk 0:00:19.6]}
33... Ra8 {[%clk 0:00:33.6]} 34. Rd7 {[%clk 0:00:17]} 34... Rd8 {[%clk
0:00:33.2]} 35. Rxd8 {[%clk 0:00:15.8]} 35... Rxd8 {[%clk 0:00:34.1]} 36. Na4
{[%clk 0:00:16.2]} 36... Rc8 {[%clk 0:00:31.5]} 37. Nb6 {[%clk 0:00:16.2]} 37...
Rb8 {[%clk 0:00:19.9]} 38. Rxc6 {[%clk 0:00:16]} 38... Bh6 {[%clk 0:00:20.1]}
39. Nxd5 {[%clk 0:00:15.2]} 39... Rd8 {[%clk 0:00:20.3]} 40. Rc5 {[%clk
0:00:12.5]} 40... Bf8 {[%clk 0:00:20.2]} 41. Nf6+ {[%clk 0:00:12.1]} 41... Kf7
{[%clk 0:00:18.9]} 42. Rc7+ {[%clk 0:00:11.8]} 42... Be7 {[%clk 0:00:17.7]} 43.
d5 {[%clk 0:00:10.2]} 43... Kf8 {[%clk 0:00:16.3]} 44. Nxh7+ {[%clk 0:00:10.4]}
44... Ke8 {[%clk 0:00:15.1]} 45. d6 {[%clk 0:00:10.6]} 45... Bh4 {[%clk
0:00:13.9]} 46. Kh3 {[%clk 0:00:08.7]} 46... Bxf2 {[%clk 0:00:12]} 47. Nf6+
{[%clk 0:00:09]} 47... Kf8 {[%clk 0:00:12.4]} 48. Rh7 {[%clk 0:00:09.7]} 48...
Bb6 {[%clk 0:00:09.5]} 49. Nd7+ {[%clk 0:00:06.2]} 49... Kg8 {[%clk 0:00:09.4]}
50. Nf6+ {[%clk 0:00:07.1]} 50... Kf8 {[%clk 0:00:09.5]} 51. Rb7 {[%clk
0:00:08]} 51... Ba5 {[%clk 0:00:09.3]} 52. Kh4 {[%clk 0:00:08.4]} 52... Bd2
{[%clk 0:00:06.9]} 53. Kg5 {[%clk 0:00:08.6]} 53... Ra8 {[%clk 0:00:06.8]} 54.
Kxg6 {[%clk 0:00:08.9]} 1-0

[Event "*** Titled Tuesday Blitz"]
[Site "Chess.com"]
[Date "2020.05.12"]
[Round "2"]
[White "IljaJoke"]
[Black "12teen"]
[Result "1/2-1/2"]
[WhiteElo "2522"]
[BlackElo "2770"]
[TimeControl "180+1"]
[EndTime "10:18:59 PDT"]
[Termination "Game drawn - insufficient material"]

1. d4 {[%clk 0:03:00.9]} 1... e6 {[%clk 0:02:56.4]} 2. c4 {[%clk 0:03:00.1]}
2... d5 {[%clk 0:02:56.6]} 3. Nf3 {[%clk 0:02:59.7]} 3... Nf6 {[%clk 0:02:56.9]}
4. g3 {[%clk 0:03:00.2]} 4... b6 {[%clk 0:02:53.9]} 5. Bg2 {[%clk 0:02:59.6]}
5... Bb7 {[%clk 0:02:54.4]} 6. cxd5 {[%clk 0:02:59.8]} 6... Bxd5 {[%clk
0:02:51.1]} 7. Nc3 {[%clk 0:02:59.3]} 7... Bb7 {[%clk 0:02:50.5]} 8. O-O {[%clk
0:02:54.9]} 8... Nbd7 {[%clk 0:02:50.6]} 9. Re1 {[%clk 0:02:49.6]} 9... c5
{[%clk 0:02:49.2]} 10. e4 {[%clk 0:02:49.9]} 10... cxd4 {[%clk 0:02:48.7]} 11.
Nxd4 {[%clk 0:02:50.8]} 11... a6 {[%clk 0:02:42.3]} 12. Be3 {[%clk 0:02:48.7]}
12... Bb4 {[%clk 0:02:36.3]} 13. Rc1 {[%clk 0:02:17.1]} 13... Bxc3 {[%clk
0:02:25.3]} 14. Rxc3 {[%clk 0:02:14.8]} 14... Bxe4 {[%clk 0:01:52.7]} 15. Nc6
{[%clk 0:02:01.9]} 15... Bxc6 {[%clk 0:01:52.9]} 16. Bxc6 {[%clk 0:01:59.7]}
16... Rc8 {[%clk 0:01:52.1]} 17. Qd6 {[%clk 0:01:48.2]} 17... Qc7 {[%clk
0:01:21.7]} 18. Bxd7+ {[%clk 0:01:33.9]} 18... Qxd7 {[%clk 0:01:21.8]} 19. Rxc8+
{[%clk 0:01:22.9]} 19... Qxc8 {[%clk 0:01:22.7]} 20. Bxb6 {[%clk 0:01:15]} 20...
Nd7 {[%clk 0:01:17.2]} 21. Bd4 {[%clk 0:01:03.5]} 21... Qb8 {[%clk 0:01:08.2]}
22. Qa3 {[%clk 0:00:46.4]} 22... e5 {[%clk 0:00:42.5]} 23. f4 {[%clk 0:00:29.7]}
23... f6 {[%clk 0:00:36.1]} 24. fxe5 {[%clk 0:00:27.9]} 24... fxe5 {[%clk
0:00:37]} 25. Bxe5 {[%clk 0:00:25.8]} 25... Nxe5 {[%clk 0:00:35.1]} 26. Qc5
{[%clk 0:00:26.3]} 26... Kf7 {[%clk 0:00:21.2]} 27. Rxe5 {[%clk 0:00:23.3]}
27... Re8 {[%clk 0:00:16.9]} 28. Qd5+ {[%clk 0:00:23.5]} 28... Kg6 {[%clk
0:00:09]} 29. Rg5+ {[%clk 0:00:23.4]} 29... Kf6 {[%clk 0:00:09.4]} 30. Qf5+
{[%clk 0:00:20.4]} 30... Ke7 {[%clk 0:00:09.8]} 31. Rxg7+ {[%clk 0:00:20.6]}
31... Kd6 {[%clk 0:00:10.4]} 32. Rd7+ {[%clk 0:00:11.4]} 32... Kc6 {[%clk
0:00:10.8]} 33. Qd5+ {[%clk 0:00:11.8]} 33... Kb6 {[%clk 0:00:11.3]} 34. Qb3+
{[%clk 0:00:08.2]} 34... Kc6 {[%clk 0:00:10.4]} 35. Qa4+ {[%clk 0:00:08.5]}
35... Qb5 {[%clk 0:00:10.1]} 36. Qxb5+ {[%clk 0:00:07.4]} 36... axb5 {[%clk
0:00:11]} 37. Rxh7 {[%clk 0:00:07.7]} 37... Re1+ {[%clk 0:00:11.6]} 38. Kg2
{[%clk 0:00:07.7]} 38... Re2+ {[%clk 0:00:11.8]} 39. Kf3 {[%clk 0:00:08.2]}
39... Rxb2 {[%clk 0:00:12.3]} 40. h4 {[%clk 0:00:08.7]} 40... Rxa2 {[%clk
0:00:12.7]} 41. Kg4 {[%clk 0:00:09.1]} 41... b4 {[%clk 0:00:12.7]} 42. Rh6+
{[%clk 0:00:09.2]} 42... Kc5 {[%clk 0:00:12.8]} 43. Rh8 {[%clk 0:00:09]} 43...
Ra5 {[%clk 0:00:12.6]} 44. Rc8+ {[%clk 0:00:08.5]} 44... Kd4 {[%clk 0:00:10.2]}
45. Rb8 {[%clk 0:00:09]} 45... Kc4 {[%clk 0:00:09.7]} 46. h5 {[%clk 0:00:09.1]}
46... Rb5 {[%clk 0:00:08.5]} 47. Rc8+ {[%clk 0:00:09.3]} 47... Kd3 {[%clk
0:00:07.3]} 48. Rc1 {[%clk 0:00:10.2]} 48... b3 {[%clk 0:00:05.5]} 49. h6 {[%clk
0:00:10.6]} 49... b2 {[%clk 0:00:05.5]} 50. Rh1 {[%clk 0:00:10.7]} 50... b1=Q
{[%clk 0:00:04.6]} 51. Rxb1 {[%clk 0:00:11.1]} 51... Rxb1 {[%clk 0:00:05.5]} 52.
Kf5 {[%clk 0:00:10.6]} 52... Rh1 {[%clk 0:00:03.6]} 53. Kg6 {[%clk 0:00:09.4]}
53... Ke4 {[%clk 0:00:03.6]} 54. h7 {[%clk 0:00:08.7]} 54... Kf3 {[%clk
0:00:02.7]} 55. Kg7 {[%clk 0:00:08.8]} 55... Rxh7+ {[%clk 0:00:02.8]} 56. Kxh7
{[%clk 0:00:08.7]} 56... Kxg3 {[%clk 0:00:03.7]} 1/2-1/2

[Event "*** Titled Tuesday Blitz"]
[Site "Chess.com"]
[Date "2020.05.12"]
[Round "2"]
[White "StockholmMissile"]
[Black "mbojan"]
[Result "0-1"]
[WhiteElo "2449"]
[BlackElo "2673"]
[TimeControl "180+1"]
[EndTime "10:18:59 PDT"]
[Termination "mbojan won on time"]

1. d4 {[%clk 0:03:00.9]} 1... Nf6 {[%clk 0:02:59.5]} 2. c4 {[%clk 0:03:00.9]}
2... c5 {[%clk 0:02:59.4]} 3. d5 {[%clk 0:03:00.9]} 3... b5 {[%clk 0:02:58.5]}
4. Qc2 {[%clk 0:03:00.9]} 4... bxc4 {[%clk 0:02:58.4]} 5. e4 {[%clk 0:03:00.1]}
5... g6 {[%clk 0:02:58.2]} 6. Bxc4 {[%clk 0:02:59.3]} 6... d6 {[%clk 0:02:58.5]}
7. Nf3 {[%clk 0:02:58.7]} 7... Bg7 {[%clk 0:02:58.8]} 8. h3 {[%clk 0:02:59]}
8... O-O {[%clk 0:02:58.6]} 9. O-O {[%clk 0:02:59.5]} 9... Ba6 {[%clk
0:02:57.6]} 10. Na3 {[%clk 0:02:59.3]} 10... Nfd7 {[%clk 0:02:56.5]} 11. Bd2
{[%clk 0:02:50.5]} 11... Bxc4 {[%clk 0:02:53.7]} 12. Nxc4 {[%clk 0:02:50]} 12...
Qc8 {[%clk 0:02:54.1]} 13. Bc3 {[%clk 0:02:49.2]} 13... Bxc3 {[%clk 0:02:52.3]}
14. bxc3 {[%clk 0:02:47.2]} 14... Qa6 {[%clk 0:02:51.6]} 15. Nfd2 {[%clk
0:02:45.1]} 15... Nb6 {[%clk 0:02:51.3]} 16. Qd3 {[%clk 0:02:32.8]} 16... N8d7
{[%clk 0:02:50]} 17. Nb2 {[%clk 0:02:16.6]} 17... Qxd3 {[%clk 0:02:50.9]} 18.
Nxd3 {[%clk 0:02:16.6]} 18... Na4 {[%clk 0:02:51.8]} 19. Rfc1 {[%clk 0:02:09.5]}
19... Rab8 {[%clk 0:02:50]} 20. Nc4 {[%clk 0:02:01.4]} 20... Rb5 {[%clk
0:02:29]} 21. f4 {[%clk 0:01:45.5]} 21... Ndb6 {[%clk 0:02:09.3]} 22. Nxb6
{[%clk 0:01:35.1]} 22... Rxb6 {[%clk 0:01:45.1]} 23. e5 {[%clk 0:01:23.1]} 23...
Nb2 {[%clk 0:01:42.3]} 24. Nxb2 {[%clk 0:01:12.6]} 24... Rxb2 {[%clk 0:01:43.2]}
25. exd6 {[%clk 0:01:07.9]} 25... exd6 {[%clk 0:01:44.1]} 26. Re1 {[%clk
0:01:07.3]} 26... Rd2 {[%clk 0:01:35.6]} 27. Red1 {[%clk 0:01:02.9]} 27... Rxd1+
{[%clk 0:01:33.4]} 28. Rxd1 {[%clk 0:01:02.3]} 28... Rb8 {[%clk 0:01:34.1]} 29.
Re1 {[%clk 0:00:51]} 29... Kf8 {[%clk 0:01:34.1]} 30. Kf2 {[%clk 0:00:45.1]}
30... Rb5 {[%clk 0:01:05.9]} 31. Re2 {[%clk 0:00:42.7]} 31... Ra5 {[%clk
0:00:58.5]} 32. Ke3 {[%clk 0:00:42.3]} 32... Ra4 {[%clk 0:00:56.5]} 33. Kf3
{[%clk 0:00:38.8]} 33... Ra3 {[%clk 0:00:49.8]} 34. Rc2 {[%clk 0:00:38.4]} 34...
Ke7 {[%clk 0:00:50.2]} 35. Ke3 {[%clk 0:00:37.9]} 35... Kf6 {[%clk 0:00:50.1]}
36. Ke4 {[%clk 0:00:32.7]} 36... Ra4+ {[%clk 0:00:50.1]} 37. Kf3 {[%clk
0:00:33]} 37... h6 {[%clk 0:00:46.7]} 38. Rb2 {[%clk 0:00:30.2]} 38... Ra3
{[%clk 0:00:46.7]} 39. Rc2 {[%clk 0:00:28.8]} 39... g5 {[%clk 0:00:45.1]} 40.
fxg5+ {[%clk 0:00:27.5]} 40... hxg5 {[%clk 0:00:46]} 41. Ke4 {[%clk 0:00:23.8]}
41... Ra4+ {[%clk 0:00:46]} 42. Kd3 {[%clk 0:00:23.7]} 42... Ke5 {[%clk
0:00:43.6]} 43. Re2+ {[%clk 0:00:08.7]} 43... Kxd5 {[%clk 0:00:43.3]} 44. Re7
{[%clk 0:00:09.3]} 44... Rxa2 {[%clk 0:00:43.6]} 45. Rxf7 {[%clk 0:00:09.1]}
45... Rxg2 {[%clk 0:00:43.9]} 46. Rxa7 {[%clk 0:00:08.4]} 46... Rg3+ {[%clk
0:00:44.3]} 47. Kd2 {[%clk 0:00:08.3]} 47... Rxh3 {[%clk 0:00:45.2]} 48. Rg7
{[%clk 0:00:07.6]} 48... Rg3 {[%clk 0:00:45.3]} 49. Rg6 {[%clk 0:00:07]} 49...
Ke5 {[%clk 0:00:44.7]} 50. Kc2 {[%clk 0:00:06.8]} 50... c4 {[%clk 0:00:44.3]}
51. Kd2 {[%clk 0:00:06.9]} 51... d5 {[%clk 0:00:43.6]} 52. Rg8 {[%clk
0:00:06.6]} 52... g4 {[%clk 0:00:43.1]} 53. Ke2 {[%clk 0:00:04.2]} 53... Rxc3
{[%clk 0:00:42.8]} 54. Rxg4 {[%clk 0:00:03.6]} 54... Rd3 {[%clk 0:00:43.2]} 55.
Rh4 {[%clk 0:00:03.4]} 55... Kd6 {[%clk 0:00:43.5]} 56. Rh8 {[%clk 0:00:02.9]}
56... Kc5 {[%clk 0:00:44]} 57. Rb8 {[%clk 0:00:03.4]} 57... Kd4 {[%clk 0:00:44]}
58. Rh8 {[%clk 0:00:03.6]} 58... Re3+ {[%clk 0:00:44.3]} 59. Kd2 {[%clk
0:00:03.4]} 59... Re4 {[%clk 0:00:45.2]} 60. Kc2 {[%clk 0:00:03.6]} 60... Re2+
{[%clk 0:00:45.3]} 61. Kd1 {[%clk 0:00:03.6]} 61... Ra2 {[%clk 0:00:44.7]} 62.
Rh3 {[%clk 0:00:03.9]} 62... c3 {[%clk 0:00:44.1]} 63. Kc1 {[%clk 0:00:04.3]}
63... Kc4 {[%clk 0:00:44]} 64. Rh8 {[%clk 0:00:03.1]} 64... d4 {[%clk
0:00:44.2]} 65. Rh7 {[%clk 0:00:03]} 65... Rg2 {[%clk 0:00:43.8]} 0-1

[Event "*** Titled Tuesday Blitz"]
[Site "Chess.com"]
[Date "2020.05.12"]
[Round "2"]
[White "MaxVavulin"]
[Black "Berant"]
[Result "1-0"]
[WhiteElo "2638"]
[BlackElo "2338"]
[TimeControl "180+1"]
[EndTime "10:18:59 PDT"]
[Termination "MaxVavulin won by checkmate"]

1. e4 {[%clk 0:03:00.9]} 1... c5 {[%clk 0:02:58.9]} 2. Nf3 {[%clk 0:03:00.8]}
2... Nc6 {[%clk 0:02:59.3]} 3. d4 {[%clk 0:02:58.5]} 3... cxd4 {[%clk
0:02:59.4]} 4. Nxd4 {[%clk 0:02:59.1]} 4... e5 {[%clk 0:02:59.7]} 5. Nb5 {[%clk
0:02:59]} 5... Nf6 {[%clk 0:02:58.8]} 6. N1c3 {[%clk 0:02:55.7]} 6... d6 {[%clk
0:02:59.1]} 7. Bg5 {[%clk 0:02:50.3]} 7... a6 {[%clk 0:02:59.4]} 8. Na3 {[%clk
0:02:50.1]} 8... b5 {[%clk 0:02:59.9]} 9. Bxf6 {[%clk 0:02:40.8]} 9... Qxf6
{[%clk 0:02:58.6]} 10. Nd5 {[%clk 0:02:41.2]} 10... Qd8 {[%clk 0:02:58.6]} 11.
Bxb5 {[%clk 0:02:39.1]} 11... axb5 {[%clk 0:02:53.3]} 12. Nxb5 {[%clk
0:02:39.6]} 12... Ra7 {[%clk 0:02:39.6]} 13. Nxa7 {[%clk 0:02:37.8]} 13... Nxa7
{[%clk 0:02:39.7]} 14. c3 {[%clk 0:02:36.7]} 14... Bd7 {[%clk 0:02:35.4]} 15.
Qb3 {[%clk 0:02:31.4]} 15... Nc6 {[%clk 0:02:24]} 16. Qb7 {[%clk 0:02:18.3]}
16... Qb8 {[%clk 0:01:59.2]} 17. Qxb8+ {[%clk 0:02:07.6]} 17... Nxb8 {[%clk
0:01:58.8]} 18. a4 {[%clk 0:02:08.2]} 18... Be7 {[%clk 0:01:52.9]} 19. a5 {[%clk
0:02:08]} 19... Na6 {[%clk 0:01:47]} 20. b4 {[%clk 0:02:06.9]} 20... Bc6 {[%clk
0:01:31.8]} 21. Kd2 {[%clk 0:01:57.5]} 21... Kd7 {[%clk 0:01:26.6]} 22. Kd3
{[%clk 0:01:48.1]} 22... f5 {[%clk 0:01:21.7]} 23. f3 {[%clk 0:01:45.3]} 23...
Bxd5 {[%clk 0:01:12.1]} 24. exd5 {[%clk 0:01:45]} 24... Rb8 {[%clk 0:01:10.4]}
25. Rab1 {[%clk 0:01:32.9]} 25... Rb5 {[%clk 0:01:02.2]} 26. Kc4 {[%clk
0:01:21.9]} 26... Rb8 {[%clk 0:00:54.1]} 27. Kb3 {[%clk 0:00:58.3]} 27... Bg5
{[%clk 0:00:48.3]} 28. Rhe1 {[%clk 0:00:50.9]} 28... e4 {[%clk 0:00:45.9]} 29.
fxe4 {[%clk 0:00:44]} 29... fxe4 {[%clk 0:00:46.1]} 30. Ka4 {[%clk 0:00:40.2]}
30... e3 {[%clk 0:00:45.5]} 31. c4 {[%clk 0:00:38.7]} 31... Rc8 {[%clk
0:00:35.9]} 32. c5 {[%clk 0:00:15.8]} 32... dxc5 {[%clk 0:00:29.2]} 33. b5
{[%clk 0:00:16.3]} 33... Nb8 {[%clk 0:00:27.9]} 34. a6 {[%clk 0:00:15]} 34...
Kd6 {[%clk 0:00:25.5]} 35. a7 {[%clk 0:00:08.3]} 35... Nd7 {[%clk 0:00:25.9]}
36. b6 {[%clk 0:00:08.8]} 36... Ra8 {[%clk 0:00:17.8]} 37. Kb5 {[%clk
0:00:08.8]} 37... Kxd5 {[%clk 0:00:12.7]} 38. Ka6 {[%clk 0:00:06.8]} 38... Nxb6
{[%clk 0:00:12.3]} 39. Kxb6 {[%clk 0:00:06.5]} 39... Rf8 {[%clk 0:00:06.7]} 40.
Ka6 {[%clk 0:00:05.4]} 40... Kd4 {[%clk 0:00:04.8]} 41. Rb8 {[%clk 0:00:04.8]}
41... Rf6+ {[%clk 0:00:03.3]} 42. Ka5 {[%clk 0:00:04.7]} 42... e2 {[%clk
0:00:02.9]} 43. Rxe2 {[%clk 0:00:04.5]} 43... Bd2+ {[%clk 0:00:03.3]} 44. Rxd2+
{[%clk 0:00:03]} 44... Kc3 {[%clk 0:00:04.2]} 45. a8=Q {[%clk 0:00:01.9]} 45...
c4 {[%clk 0:00:05.1]} 46. Qd5 {[%clk 0:00:02.1]} 46... Rf5 {[%clk 0:00:05.9]}
47. Qxf5 {[%clk 0:00:02.2]} 47... Kxd2 {[%clk 0:00:06.4]} 48. Qf3 {[%clk
0:00:02.9]} 48... Kc1 {[%clk 0:00:07.3]} 49. Rc8 {[%clk 0:00:03.2]} 49... c3
{[%clk 0:00:08.2]} 50. Rxc3+ {[%clk 0:00:03.5]} 50... Kb2 {[%clk 0:00:09.1]} 51.
Qd3 {[%clk 0:00:03.4]} 51... Ka1 {[%clk 0:00:10]} 52. Rc2 {[%clk 0:00:03.8]}
52... Kb1 {[%clk 0:00:09]} 53. Qd1# {[%clk 0:00:04.3]} 1-0